lending/lending_fUSD_20260204
["ID","MTS","AMOUNT","RATE_DAILY","PERIOD"]
[404493762,1770215432250,-500.0,0.00011566,2]
[404493763,1770215432261,-500.0,0.00011566,2]
[404493764,1770215432270,-500.0,0.00011566,2]
[404493766,1770215432280,-151.0,0.00011566,2]
[404493768,1770215432289,-151.0,0.00011566,2]
[404493770,1770215432298,-151.0,0.00011566,2]
[404493772,1770215432308,-151.0,0.00011566,2]
[404493774,1770215432317,-151.0,0.00011566,2]
[404493776,1770215432326,-151.0,0.00011566,2]
[404493778,1770215432335,-151.0,0.00011566,2]
[404493780,1770215432349,-151.0,0.00011566,2]
[404493782,1770215432359,-151.0,0.00011566,2]
[404493784,1770215432368,-66.5820323,0.00011566,2]
[404493785,1770215432384,-84.4179677,0.00011566,2]
[404493786,1770215432394,-151.0,0.00011566,2]
[404493787,1770215432403,-200.0,0.00011566,2]
[404493789,1770215432412,-500.0,0.00011566,2]
[404493791,1770215432421,-500.0,0.00011566,2]
[404493793,1770215432430,-500.0,0.00011566,2]
[404493794,1770215432441,-266.98654709,0.00011566,2]
[404493795,1770215432472,-233.01345291,0.00011566,2]
[404493796,1770215432482,-198.72535471,0.00011566,2]
[404493797,1770215438204,-301.27464529,0.00011566,2]
[404493798,1770215438214,-75.72535471,0.00011566,2]
[404493799,1770215438267,-424.27464529,0.00011566,2]
[404493800,1770215438278,-500.0,0.00011566,2]
[404493801,1770215438288,-209.09048568,0.00011566,2]
[404493802,1770215438301,-290.90951432,0.00011566,2]
[404493803,1770215438310,-463.15048568,0.00011566,2]
[404493804,1770215438322,-36.84951432,0.00011566,2]
[404493805,1770215438332,-500.0,0.00011566,2]
[404493806,1770215438343,-462.15048568,0.00011566,2]
[404493807,1770215438370,-37.84951432,0.00011566,2]
[404493808,1770215438381,-500.0,0.00011573,2]
[404493809,1770215438395,-1392.32,0.00011573,2]
[404493810,1770215438404,-1436.8989678,0.00011573,2]
[404493811,1770215438416,-4548.52741186,0.00011573,2]
[404493812,1770215438428,-4835.60362034,0.00011573,2]
[404493813,1770215438438,-8209.05504118,0.00011573,2]
[404493820,1770215440442,-1790.93495882,0.00011573,2]
[404493821,1770215440452,-1392.32,0.00011594,2]
[404493822,1770215440462,-1392.32,0.00011615,2]
[404493823,1770215440472,-1392.32,0.00011637,2]
[404493824,1770215440490,-340.0,0.00011639,2]
[404493825,1770215440503,-1392.32,0.00011658,2]
[404493826,1770215440516,-1392.32,0.00011679,2]
[404493827,1770215440526,-1392.32,0.000117,2]
[404493828,1770215440535,-1392.32,0.00011721,2]
[404493829,1770215440545,-1392.32,0.00011742,2]
[404493830,1770215440555,-1392.32,0.00011764,2]
[404493831,1770215440565,-1392.32,0.00011785,2]
[404493832,1770215440575,-1392.32,0.00011806,2]
[404493833,1770215440586,-1392.32,0.00011827,2]
[404493834,1770215440598,-500.0,0.00011847,2]
[404493835,1770215440613,-1392.32,0.00011848,2]
[404493836,1770215440622,-1392.32,0.00011869,2]
[404493837,1770215440634,-1392.32,0.0001189,2]
[404493838,1770215440645,-12890.6206,0.00011905,2]
[404493839,1770215440656,-1372.81,0.00011972,2]
[404493840,1770215440666,-2500.0,0.00011997,2]
[404493841,1770215440678,-62461.34,0.00012005,2]
[404493842,1770215440688,-500.0,0.0001201,2]
[404493843,1770215440701,-218.15633909,0.0001201,2]
[404493844,1770215440711,-500.0,0.0001201,2]
[404493845,1770215440720,-500.0,0.0001201,2]
[404493846,1770215440729,-500.0,0.0001201,2]
[404493847,1770215440739,-500.0,0.0001201,2]
[404493848,1770215440751,-536.57233974,0.0001201,2]
[404493849,1770215440762,-250.0,0.00012011,2]
[404493850,1770215440773,-250.0,0.00012032,2]
[404493851,1770215440783,-250.0,0.00012032,2]
[404493852,1770215440792,-500.0,0.00012114,2]
[404493853,1770215440801,-200.0,0.00012114,2]
[404493854,1770215440819,-500.0,0.00012121,2]
[404493855,1770215440842,-500.0,0.00012137,2]
[404493856,1770215440860,-10000.0,0.00012197,2]
[404493857,1770215440871,-1089.64825227,0.00012197,2]
[404493858,1770215440881,-250.0,0.00012198,2]
[404493859,1770215440890,-200.0,0.00012257,2]
[404493860,1770215440900,-156.79,0.0001229,2]
[404493861,1770215440909,-1178.63534639,0.00012296,3]
[404493862,1770215440919,-1000.0,0.00012297,2]
[404493863,1770215440928,-421.997,0.00012297,2]
[404493864,1770215440937,-33275.4141,0.00012297,2]
[404493865,1770215440947,-1000.0,0.00012305,2]
[404493866,1770215440956,-600.0,0.00012366,2]
[404493867,1770215440965,-500.0,0.00012395,2]
[404493868,1770215440975,-166.66,0.00012516,2]
[404493869,1770215440984,-156.79,0.00012564,2]
[404493870,1770215440993,-500.0,0.00012603,2]
[404493871,1770215441003,-357.19,0.00012627,2]
[404493872,1770215441015,-255.0,0.00012629,2]
[404493873,1770215441025,-5172.97900523,0.00012638,2]
[404493874,1770215441034,-13651.57343933,0.00012638,2]
[404493875,1770215441043,-24082.99371968,0.00012638,2]
[404493876,1770215441053,-500.0,0.00012662,2]
[404493877,1770215441062,-200.0,0.00012662,2]
[404493878,1770215441071,-420.0,0.00012663,2]
[404493879,1770215441081,-1680.0,0.00012682,2]
[404493880,1770215441090,-166.66,0.00012779,2]
[404493881,1770215441099,-3900.98401846,0.00012815,2]
[404493882,1770215441108,-156.79,0.00012838,2]
[404493883,1770215441117,-631.73,0.0001291,2]
[404493884,1770215441127,-166.66,0.00013043,2]
[404493885,1770215441136,-156.79,0.00013112,2]
[404493886,1770215441146,-500.0,0.0001321,2]
[404493887,1770215441155,-166.66,0.00013306,2]
[404493888,1770215441165,-156.79,0.00013385,2]
[404493889,1770215441174,-3240.0,0.00013425,2]
[404493890,1770215441183,-166.66,0.0001357,2]
[404493891,1770215441192,-27605.33425569,0.00013598,2]
[404493892,1770215441202,-36026.71829538,0.00013638,2]
[404493893,1770215441211,-156.79,0.00013659,2]
[404493894,1770215441221,-1000.0,0.00013673,2]
[404493895,1770215441230,-500.0,0.00013698,2]
[404493896,1770215441240,-500.0,0.00013698,2]
[404493897,1770215441249,-500.0,0.00013698,2]
[404493898,1770215441258,-500.0,0.00013698,2]
[404493899,1770215441269,-514.1682276,0.00013698,2]
[404493900,1770215441279,-500.0,0.00013698,2]
[404493901,1770215441288,-500.0,0.00013698,2]
[404493902,1770215441297,-310.72048062,0.00013698,2]
[404493903,1770215441307,-500.0,0.00013698,2]
[404493904,1770215441316,-502.87563044,0.00013698,2]
[404493905,1770215441326,-500.0,0.00013698,2]
[404493906,1770215441335,-503.69401691,0.00013698,2]
[404493907,1770215441345,-500.0,0.00013698,2]
[404493908,1770215441354,-500.0,0.00013698,2]
[404493909,1770215441363,-500.0,0.00013698,2]
[404493910,1770215441372,-500.0,0.00013698,2]
[404493911,1770215441381,-500.0,0.00013698,2]
[404493912,1770215441390,-500.0,0.00013698,2]
[404493913,1770215441399,-500.0,0.00013698,2]
[404493914,1770215441409,-500.0,0.00013698,2]
[404493915,1770215441418,-500.0,0.00013698,2]
[404493916,1770215441428,-500.0,0.00013698,2]
[404493917,1770215441437,-500.0,0.00013698,2]
[404493918,1770215441447,-500.0,0.00013698,2]
[404493919,1770215441456,-500.0,0.00013698,2]
[404493920,1770215441466,-500.0,0.00013698,2]
[404493921,1770215441475,-500.0,0.00013698,2]
[404493922,1770215441484,-500.0,0.00013698,2]
[404493923,1770215441495,-500.0,0.00013698,2]
[404493924,1770215441504,-500.0,0.00013698,2]
[404493925,1770215441516,-429.60175514,0.00013698,2]
[404493926,1770215441526,-500.0,0.00013698,2]
[404493927,1770215441535,-500.0,0.00013698,2]
[404493928,1770215441545,-500.0,0.00013698,2]
[404493929,1770215441555,-587.5541255,0.00013698,2]
[404493930,1770215441564,-500.0,0.00013698,2]
[404493931,1770215441574,-523.26417397,0.00013698,2]
[404493932,1770215441583,-504.11677041,0.00013698,2]
[404493933,1770215441593,-500.0,0.00013698,2]
[404493934,1770215441607,-500.0,0.00013698,2]
[404493935,1770215441619,-500.0,0.00013698,2]
[404493936,1770215441628,-500.0,0.00013698,2]
[404493937,1770215441637,-500.0,0.00013698,2]
[404493938,1770215441646,-500.0,0.00013698,2]
[404493939,1770215441656,-500.0,0.00013698,2]
[404493940,1770215441666,-500.0,0.00013698,2]
[404493941,1770215441676,-500.0,0.00013698,2]
[404493942,1770215441685,-500.0,0.00013698,2]
[404493943,1770215441694,-500.0,0.00013698,2]
[404493944,1770215441706,-500.0,0.00013698,2]
[404493945,1770215441715,-500.0,0.00013698,2]
[404493946,1770215441724,-500.0,0.00013698,2]
[404493947,1770215441733,-500.0,0.00013698,2]
[404493948,1770215441743,-519.14978785,0.00013698,2]
[404493949,1770215441752,-500.0,0.00013698,2]
[404493950,1770215441761,-496.93460441,0.00013698,2]
[404493951,1770215441772,-500.0,0.00013698,2]
[404493952,1770215441781,-500.0,0.00013698,2]
[404493953,1770215441790,-500.0,0.00013698,2]
[404493954,1770215441800,-500.0,0.00013698,2]
[404493955,1770215441810,-500.0,0.00013698,2]
[404493956,1770215441819,-500.0,0.00013698,2]
[404493957,1770215441829,-500.0,0.00013698,2]
[404493958,1770215441838,-500.0,0.00013698,2]
[404493959,1770215441847,-500.0,0.00013698,2]
[404493960,1770215441857,-500.0,0.00013698,2]
[404493961,1770215441866,-500.0,0.00013698,2]
[404493962,1770215441875,-159.30915247,0.00013698,2]
[404493963,1770215441885,-500.0,0.00013698,2]
[404493964,1770215441894,-500.0,0.00013698,2]
[404493965,1770215441903,-500.0,0.00013698,2]
[404493966,1770215441913,-500.0,0.00013698,2]
[404493967,1770215441922,-500.0,0.00013698,2]
[404493968,1770215441931,-500.0,0.00013698,2]
[404493969,1770215441940,-500.0,0.00013698,2]
[404493970,1770215441949,-500.0,0.00013698,2]
[404493971,1770215441958,-500.0,0.00013698,2]
[404493972,1770215441967,-500.0,0.00013698,2]
[404493973,1770215441977,-500.0,0.00013698,2]
[404493974,1770215441986,-500.0,0.00013698,2]
[404493975,1770215441995,-500.0,0.00013698,2]
[404493976,1770215442004,-500.0,0.00013698,2]
[404493977,1770215442014,-500.0,0.00013698,2]
[404493978,1770215442024,-500.0,0.00013698,2]
[404493979,1770215442033,-500.0,0.00013698,2]
[404493980,1770215442042,-500.0,0.00013698,2]
[404493981,1770215442052,-500.0,0.00013698,2]
[404493982,1770215442062,-500.0,0.00013698,2]
[404493983,1770215442071,-500.0,0.00013698,2]
[404493984,1770215442080,-500.0,0.00013698,2]
[404493985,1770215442089,-500.0,0.00013698,2]
[404493986,1770215442099,-507.93374803,0.00013698,2]
[404493987,1770215442108,-500.0,0.00013698,2]
[404493988,1770215442117,-500.0,0.00013698,2]
[404493989,1770215442127,-500.0,0.00013698,2]
[404493990,1770215442136,-500.0,0.00013698,2]
[404493991,1770215442145,-500.0,0.00013698,2]
[404493992,1770215442154,-500.0,0.00013698,2]
[404493993,1770215442163,-500.0,0.00013698,2]
[404493994,1770215442173,-500.0,0.00013698,2]
[404493995,1770215442183,-500.0,0.00013698,2]
[404493996,1770215442192,-500.0,0.00013698,2]
[404493997,1770215442201,-500.0,0.00013698,2]
[404493998,1770215442210,-500.0,0.00013698,2]
[404493999,1770215442219,-504.83472388,0.00013698,2]
[404494000,1770215442228,-500.0,0.00013698,2]
[404494001,1770215442237,-500.0,0.00013698,2]
[404494002,1770215442246,-500.0,0.00013698,2]
[404494003,1770215442255,-500.0,0.00013698,2]
[404494004,1770215442263,-500.0,0.00013698,2]
[404494005,1770215442275,-500.0,0.00013698,2]
[404494006,1770215442283,-500.0,0.00013698,2]
[404494007,1770215442293,-353.03533501,0.00013698,2]
[404494008,1770215442302,-500.0,0.00013698,2]
[404494009,1770215442311,-500.0,0.00013698,2]
[404494010,1770215442320,-500.0,0.00013698,2]
[404494011,1770215442329,-500.0,0.00013698,2]
[404494012,1770215442338,-500.0,0.00013698,2]
[404494013,1770215442347,-499.73386374,0.00013698,2]
[404494014,1770215442355,-500.0,0.00013698,2]
[404494015,1770215442365,-500.0,0.00013698,2]
[404494016,1770215442373,-500.0,0.00013698,2]
[404494017,1770215442384,-500.0,0.00013698,2]
[404494018,1770215442393,-500.0,0.00013698,2]
[404494019,1770215442402,-500.0,0.00013698,2]
[404494020,1770215442411,-326.5559361,0.00013698,2]
[404494021,1770215442420,-773.56,0.00013699,2]
[404494022,1770215442430,-869.18,0.00013699,2]
[404494023,1770215442439,-500.0,0.00013758,2]
[404494024,1770215442448,-510.52,0.00013774,2]
[404494025,1770215442458,-433.0,0.00013786,2]
[404494026,1770215442469,-166.66,0.00013833,2]
[404494027,1770215442479,-587.0,0.00013908,2]
[404494028,1770215442488,-156.79,0.00013933,2]
[404494029,1770215442497,-2351.0,0.0001395,2]
[404494030,1770215442506,-773.56,0.00013973,2]
[404494031,1770215442515,-869.18,0.00013973,2]
[404494032,1770215442526,-187.42077116,0.00014075,2]
[404494033,1770215442535,-159.15851105,0.00014075,2]
[404494034,1770215442545,-361.91882675,0.00014075,2]
[404494035,1770215442554,-204.91953757,0.00014075,2]
[404494036,1770215442563,-263.89834288,0.00014075,2]
[404494037,1770215442573,-457.99564182,0.00014075,2]
[404494038,1770215442583,-27605.33425562,0.00014076,2]
[404494039,1770215442592,-2000.0,0.000141,2]
[404494040,1770215442601,-666.0,0.00014137,2]
[404494041,1770215442611,-48745.422,0.00014138,2]
[404494042,1770215442623,-1409.37252331,0.00014191,2]
[404494043,1770215442632,-1409.37252331,0.00014191,2]
[404494044,1770215442641,-156.79,0.00014207,2]
[404494045,1770215442651,-773.56,0.00014247,2]
[404494046,1770215442662,-869.18,0.00014247,2]
[404494047,1770215442671,-500.0,0.00014306,2]
[404494048,1770215442682,-2000.0,0.000144,2]
[404494049,1770215442693,-500.0,0.0001441,2]
[404494050,1770215442703,-500.0,0.0001441,2]
[404494051,1770215442713,-150.0,0.0001441,2]
[404494052,1770215442723,-150.4373073,0.0001441,2]
[404494053,1770215442733,-500.0,0.0001441,2]
[404494054,1770215442743,-500.0,0.0001441,2]
[404494055,1770215442753,-500.0,0.0001441,2]
[404494056,1770215442763,-150.0,0.0001441,2]
[404494057,1770215442779,-500.0,0.0001441,2]
[404494058,1770215442788,-688.0,0.0001441,2]
[404494059,1770215442798,-500.0,0.0001441,2]
[404494060,1770215442807,-150.0,0.0001441,2]
[404494061,1770215442816,-150.0,0.0001441,2]
[404494062,1770215442826,-250.0,0.0001441,2]
[404494063,1770215442835,-150.0,0.0001441,2]
[404494064,1770215442844,-500.0,0.0001441,2]
[404494065,1770215442853,-150.0,0.0001441,2]
[404494066,1770215442862,-150.0,0.0001441,2]
[404494067,1770215442872,-150.0,0.0001441,2]
[404494068,1770215442881,-150.0,0.0001441,2]
[404494070,1770215442890,-150.54146631,0.0001441,2]
[404494071,1770215442899,-200.0,0.0001441,2]
[404494073,1770215442908,-200.0,0.0001441,2]
[404494075,1770215442917,-1657.0,0.0001441,2]
[404494077,1770215442926,-500.0,0.0001441,2]
[404494078,1770215442935,-150.0,0.0001441,2]
[404494079,1770215442944,-150.0,0.0001441,2]
[404494080,1770215442954,-150.0,0.0001441,2]
[404494081,1770215442963,-500.0,0.0001441,2]
[404494082,1770215442972,-150.0,0.0001441,2]
[404494084,1770215442982,-150.0,0.0001441,2]
[404494085,1770215442991,-150.0,0.0001441,2]
[404494086,1770215443001,-150.0,0.0001441,2]
[404494087,1770215443010,-500.0,0.0001441,2]
[404494088,1770215443024,-150.0,0.0001441,2]
[404494089,1770215443035,-418.0,0.00014459,2]
[404494090,1770215443044,-500.0,0.00014465,2]
[404494091,1770215443054,-500.0,0.00014465,2]
[404494092,1770215443064,-150.0,0.00014465,2]
[404494093,1770215443073,-500.0,0.00014465,2]
[404494094,1770215443083,-500.0,0.00014465,2]
[404494095,1770215443093,-500.0,0.00014465,2]
[404494096,1770215443102,-150.0,0.00014465,2]
[404494097,1770215443112,-500.0,0.00014465,2]
[404494098,1770215443133,-688.0,0.00014465,2]
[404494099,1770215443154,-500.0,0.00014465,2]
[404494100,1770215443166,-150.0,0.00014465,2]
[404494101,1770215443176,-150.0,0.00014465,2]
[404494102,1770215443187,-500.0,0.00014465,2]
[404494103,1770215443198,-150.0,0.00014465,2]
[404494104,1770215443208,-150.0,0.00014465,2]
[404494105,1770215443218,-150.0,0.00014465,2]
[404494106,1770215443227,-150.0,0.00014465,2]
[404494107,1770215443238,-1657.0,0.00014465,2]
[404494108,1770215443248,-500.0,0.00014465,2]
[404494109,1770215443257,-150.0,0.00014465,2]
[404494110,1770215443270,-200.0,0.00014465,2]
[404494111,1770215443280,-500.0,0.00014465,2]
[404494112,1770215443291,-150.0,0.00014465,2]
[404494113,1770215443300,-150.0,0.00014465,2]
[404494114,1770215443311,-500.0,0.00014465,2]
[404494115,1770215443321,-250.0,0.00014465,2]
[404494116,1770215443331,-156.79,0.00014481,2]
[404494117,1770215443340,-150.0,0.0001452,2]
[404494118,1770215443350,-500.0,0.0001452,2]
[404494119,1770215443361,-150.0,0.0001452,2]
[404494120,1770215443370,-500.0,0.0001452,2]
[404494121,1770215443379,-569.21162373,0.0001452,2]
[404494122,1770215443389,-500.0,0.0001452,2]
[404494123,1770215443399,-150.0,0.0001452,2]
[404494124,1770215443408,-548.08731584,0.0001452,2]
[404494125,1770215443418,-688.0,0.0001452,2]
[404494126,1770215443427,-500.0,0.0001452,2]
[404494127,1770215443437,-215.60722138,0.0001452,2]
[404494128,1770215443447,-150.0,0.0001452,2]
[404494129,1770215443457,-500.0,0.0001452,2]
[404494130,1770215443467,-150.0,0.0001452,2]
[404494131,1770215443476,-155.36591009,0.0001452,2]
[404494132,1770215443485,-200.0,0.0001452,2]
[404494133,1770215443495,-150.0,0.0001452,2]
[404494134,1770215443505,-1657.0,0.0001452,2]
[404494135,1770215443514,-500.0,0.0001452,2]
[404494136,1770215443527,-150.0,0.0001452,2]
[404494137,1770215443536,-418.0,0.0001452,2]
[404494138,1770215443546,-200.0,0.0001452,2]
[404494139,1770215443555,-200.0,0.0001452,2]
[404494140,1770215443564,-500.0,0.0001452,2]
[404494141,1770215443574,-773.56,0.00014521,2]
[404494142,1770215443800,-869.18,0.00014521,2]
[404494143,1770215443811,-300.0,0.00014536,2]
[404494144,1770215443820,-151.0,0.00014551,2]
[404494145,1770215443829,-27605.33425562,0.00014554,2]
[404494146,1770215443839,-500.0,0.00014574,2]
[404494147,1770215443848,-179.32668848,0.00014574,2]
[404494148,1770215443858,-500.0,0.00014574,2]
[404494149,1770215443867,-500.0,0.00014574,2]
[404494150,1770215443876,-169.35603716,0.00014574,2]
[404494151,1770215443886,-688.0,0.00014574,2]
[404494152,1770215443895,-235.58915604,0.00014574,2]
[404494153,1770215443905,-150.0,0.00014574,2]
[404494154,1770215443914,-158.43558998,0.00014574,2]
[404494155,1770215443923,-150.0,0.00014574,2]
[404494156,1770215443932,-1657.0,0.00014574,2]
[404494157,1770215443942,-500.0,0.00014574,2]
[404494158,1770215443952,-200.0,0.00014574,2]
[404494159,1770215443961,-500.0,0.00014574,2]
[404494160,1770215443970,-500.0,0.000146,2]
[404494161,1770215443981,-500.0,0.000146,2]
[404494162,1770215443991,-607.15821099,0.000146,2]
[404494163,1770215444000,-500.0,0.000146,2]
[404494164,1770215444009,-500.125501,0.000146,2]
[404494165,1770215444024,-501.93400582,0.000146,2]
[404494166,1770215444034,-500.0,0.000146,2]
[404494167,1770215444043,-500.0,0.000146,2]
[404494168,1770215444052,-177.77624062,0.000146,2]
[404494169,1770215444062,-500.0,0.000146,2]
[404494170,1770215444071,-500.0,0.000146,2]
[404494171,1770215444081,-500.0,0.000146,2]
[404494172,1770215444091,-169.73010745,0.000146,2]
[404494173,1770215444100,-500.0,0.000146,2]
[404494174,1770215444110,-166.87248025,0.000146,2]
[404494175,1770215444119,-500.0,0.000146,2]
[404494176,1770215444129,-500.0,0.000146,2]
[404494177,1770215444138,-500.45594481,0.000146,2]
[404494178,1770215444148,-166.45228342,0.000146,2]
[404494179,1770215444157,-217.7379574,0.000146,2]
[404494180,1770215444166,-503.53079739,0.000146,2]
[404494181,1770215444176,-500.0,0.000146,2]
[404494182,1770215444185,-500.0,0.000146,2]
[404494183,1770215444195,-500.0,0.000146,2]
[404494184,1770215444204,-500.0,0.000146,2]
[404494185,1770215444214,-500.0,0.000146,2]
[404494186,1770215444223,-500.0,0.000146,2]
[404494187,1770215444233,-500.0,0.000146,2]
[404494188,1770215444243,-500.0,0.000146,2]
[404494189,1770215444252,-500.0,0.000146,2]
[404494190,1770215444261,-500.0,0.000146,2]
[404494191,1770215444272,-500.0,0.000146,2]
[404494192,1770215444281,-500.0,0.000146,2]
[404494193,1770215444290,-500.0,0.000146,2]
[404494194,1770215444299,-500.0,0.000146,2]
[404494195,1770215444309,-500.0,0.000146,2]
[404494196,1770215444318,-500.0,0.000146,2]
[404494197,1770215444327,-500.48184602,0.000146,2]
[404494198,1770215444336,-500.0,0.000146,2]
[404494199,1770215444346,-500.0,0.000146,2]
[404494200,1770215444355,-500.0,0.00014629,2]
[404494201,1770215444365,-500.0,0.00014629,2]
[404494202,1770215444374,-500.0,0.00014629,2]
[404494203,1770215444383,-688.0,0.00014629,2]
[404494204,1770215444392,-207.33206215,0.00014629,2]
[404494205,1770215444402,-150.0,0.00014629,2]
[404494206,1770215444411,-1657.0,0.00014629,2]
[404494207,1770215444421,-598.0,0.00014629,2]
[404494208,1770215444430,-332.0,0.00014629,2]
[404494209,1770215444440,-151.0,0.00014634,2]
[404494210,1770215444449,-151.0,0.00014634,2]
[404494211,1770215444459,-418.0,0.00014656,2]
[404494212,1770215444468,-500.0,0.00014684,2]
[404494213,1770215444478,-500.0,0.00014684,2]
[404494214,1770215444487,-359.16308256,0.00014684,2]
[404494215,1770215444497,-688.0,0.00014684,2]
[404494216,1770215444506,-250.0,0.00014684,2]
[404494217,1770215444515,-1657.0,0.00014684,2]
[404494218,1770215444527,-600.0,0.00014685,2]
[404494219,1770215444536,-2000.0,0.000147,2]
[404494220,1770215444546,-688.0,0.00014739,2]
[404494221,1770215444556,-1657.0,0.00014739,2]
[404494222,1770215444565,-156.79,0.00014755,2]
[404494223,1770215444575,-418.0,0.00014766,2]
[404494224,1770215444584,-418.0,0.00014776,2]
[404494225,1770215444595,-688.0,0.00014794,2]
[404494226,1770215444605,-1657.0,0.00014794,2]
[404494227,1770215444616,-773.56,0.00014795,2]
[404494228,1770215444626,-869.18,0.00014795,2]
[404494229,1770215444635,-1409.37252331,0.00014809,2]
[404494230,1770215444644,-1409.37252331,0.00014809,2]
[404494231,1770215444655,-688.0,0.00014848,2]
[404494232,1770215444665,-1657.0,0.00014848,2]
[404494233,1770215444674,-500.0,0.00014854,2]
[404494234,1770215444687,-1178.63534639,0.00014887,5]
[404494235,1770215444697,-4909.2996433,0.00014888,2]
[404494236,1770215444707,-110380.4992549,0.00014888,2]
[404494237,1770215444720,-392.7246966,0.00014888,2]
[404494238,1770215444730,-3317.375074,0.00014888,2]
[404494239,1770215444739,-7891.8798098,0.00014888,2]
[404494240,1770215444749,-2000.0,0.000149,2]
[404494241,1770215444758,-2000.0,0.000149,2]
[404494242,1770215444767,-2000.0,0.000149,2]
[404494243,1770215444778,-2000.0,0.000149,2]
[404494244,1770215444787,-688.0,0.00014903,2]
[404494245,1770215444797,-1657.0,0.00014903,2]
[404494246,1770215444807,-6196.61442922,0.00014906,2]
[404494247,1770215444816,-2000.0,0.0001491,2]
[404494248,1770215444826,-2000.0,0.0001491,2]
[404494249,1770215444835,-463.0,0.00014932,2]
[404494250,1770215444845,-1330.04455105,0.00014933,2]
[404494251,1770215444854,-370.91655145,0.00014933,2]
[404494252,1770215444864,-688.0,0.00014958,2]
[404494253,1770215444874,-1657.0,0.00014958,2]
[404494254,1770215444883,-357.19,0.00014966,2]
[404494255,1770215444892,-500.0,0.00014985,2]
[404494256,1770215444902,-353.05494351,0.00014999,2]
[404494257,1770215444914,-227502.41953727,0.00015,3]
[404494258,1770215444925,-188.96428999,0.00015,2]
[404494259,1770215444935,-151.0,0.00015,2]
[404494260,1770215444945,-1000.0,0.00015,2]
[404494261,1770215444954,-2008.0,0.00015,2]
[404494262,1770215444964,-250.0,0.00015,2]
[404494263,1770215444974,-152.38,0.00015,2]
[404494264,1770215444983,-152.38,0.00015,2]
[404494265,1770215444993,-688.0,0.00015013,2]
[404494266,1770215445002,-1657.0,0.00015013,2]
[404494267,1770215445012,-156.79,0.00015029,2]
[404494268,1770215445022,-27605.33425562,0.00015032,2]
[404494269,1770215445032,-1000.0,0.0001504,2]
[404494270,1770215445041,-736.0,0.00015058,2]
[404494271,1770215445051,-150.0,0.00015058,7]
[404494272,1770215445060,-261.648666,0.00015058,7]
[404494273,1770215445069,-373.297332,0.00015058,7]
[404494274,1770215445079,-484.945999,0.00015058,7]
[404494275,1770215445088,-596.594665,0.00015058,7]
[404494276,1770215445097,-708.243332,0.00015058,7]
[404494277,1770215445106,-819.891998,0.00015058,7]
[404494278,1770215445115,-931.540664,0.00015058,7]
[404494279,1770215445124,-1043.189331,0.00015058,7]
[404494280,1770215445134,-1154.837997,0.00015058,7]
[404494281,1770215445143,-688.0,0.00015068,2]
[404494282,1770215445153,-1657.0,0.00015068,2]
[404494283,1770215445163,-381.72,0.00015068,2]
[404494284,1770215445172,-869.18,0.00015068,2]
[404494285,1770215445182,-511.69,0.00015068,2]